fUST/lending_fUST_20250621
["ID","MTS","AMOUNT","RATE_DAILY","PERIOD"]
[366784249,1750450233816,-460.0,0.00021917,2]
[366784250,1750450233826,-340.0,0.00021917,2]
[366784251,1750450233836,-460.0,0.00021917,2]
[366784252,1750450233847,-400.0,0.00021917,2]
[366784253,1750450233856,-460.0,0.00021917,2]
[366784254,1750450233867,-460.0,0.00021917,2]
[366784255,1750450233876,-495.04161877,0.00021917,2]
[366784256,1750450233886,-460.0,0.00021917,2]
[366784257,1750450233895,-460.0,0.00021917,2]
[366784258,1750450233905,-460.0,0.00021917,2]
[366784259,1750450233914,-460.0,0.00021917,2]
[366784260,1750450233923,-460.0,0.00021917,2]
[366784261,1750450233932,-460.0,0.00021917,2]
[366784262,1750450233942,-443.90289766,0.00021917,2]
[366784263,1750450233952,-460.0,0.00021917,2]
[366784264,1750450233962,-460.0,0.00021917,2]
[366784265,1750450233971,-460.0,0.00021917,2]
[366784266,1750450233981,-460.0,0.00021917,2]
[366784267,1750450233991,-460.0,0.00021917,2]
[366784268,1750450234000,-434.05036246,0.00021917,2]
[366784269,1750450234011,-460.0,0.00021917,2]
[366784270,1750450234020,-460.0,0.00021917,2]
[366784271,1750450234030,-460.0,0.00021917,2]
[366784272,1750450234040,-460.0,0.00021917,2]
[366784273,1750450234049,-460.0,0.00021917,2]
[366784274,1750450234059,-460.0,0.00021917,2]
[366784275,1750450234068,-460.0,0.00021917,2]
[366784276,1750450234078,-460.0,0.00021917,2]
[366784277,1750450234089,-460.0,0.00021917,2]
[366784278,1750450234100,-460.0,0.00021917,2]
[366784279,1750450234110,-460.0,0.00021917,2]
[366784280,1750450234119,-380.12915958,0.00021917,2]
[366784281,1750450234130,-460.0,0.00021917,2]
[366784282,1750450234140,-460.0,0.00021917,2]
[366784283,1750450234149,-460.0,0.00021917,2]
[366784284,1750450234159,-460.0,0.00021917,2]
[366784285,1750450234169,-460.0,0.00021917,2]
[366784286,1750450234296,-460.0,0.00021917,2]
[366784287,1750450234307,-460.0,0.00021917,2]
[366784288,1750450234317,-460.0,0.00021917,2]
[366784289,1750450234327,-420.0,0.00021917,2]
[366784290,1750450234337,-460.0,0.00021917,2]
[366784291,1750450234347,-460.0,0.00021917,2]
[366784292,1750450234357,-460.0,0.00021917,2]
[366784293,1750450234367,-460.0,0.00021917,2]
[366784294,1750450234377,-401.87375511,0.00021917,2]
[366784295,1750450234386,-460.0,0.00021917,2]
[366784296,1750450234396,-460.0,0.00021917,2]
[366784297,1750450234405,-460.0,0.00021917,2]
[366784298,1750450234415,-381.51447888,0.00021917,2]
[366784299,1750450234424,-460.0,0.00021917,2]
[366784300,1750450234434,-460.0,0.00021917,2]
[366784301,1750450234444,-460.0,0.00021917,2]
[366784302,1750450234454,-460.0,0.00021917,2]
[366784303,1750450234463,-460.0,0.00021917,2]
[366784304,1750450234473,-460.0,0.00021917,2]
[366784305,1750450234487,-428.59036024,0.00021917,2]
[366784306,1750450234496,-460.0,0.00021917,2]
[366784307,1750450234505,-356.21264922,0.00021917,2]
[366784308,1750450234514,-445.25010142,0.00021917,2]
[366784309,1750450234523,-460.0,0.00021917,2]
[366784310,1750450234532,-460.0,0.00021917,2]
[366784311,1750450234542,-430.0,0.00021917,2]
[366784312,1750450234552,-460.0,0.00021917,2]
[366784313,1750450234562,-460.0,0.00021917,2]
[366784314,1750450234572,-400.0,0.00021917,2]
[366784315,1750450234582,-460.0,0.00021917,2]
[366784316,1750450234592,-460.0,0.00021917,2]
[366784317,1750450234601,-460.0,0.00021917,2]
[366784318,1750450234611,-445.80687986,0.00021917,2]
[366784319,1750450234620,-169.59337326,0.00021917,2]
[366784320,1750450234630,-460.0,0.00021917,2]
[366784321,1750450234640,-460.0,0.00021917,2]
[366784322,1750450234650,-460.0,0.00021917,2]
[366784323,1750450234660,-299.73786404,0.00021917,2]
[366784324,1750450234669,-460.0,0.00021917,2]
[366784325,1750450234679,-460.0,0.00021917,2]
[366784326,1750450234688,-460.0,0.00021917,2]
[366784327,1750450234698,-460.0,0.00021917,2]
[366784328,1750450234708,-460.0,0.00021917,2]
[366784329,1750450234718,-460.0,0.00021917,2]
[366784330,1750450234727,-460.0,0.00021917,2]
[366784331,1750450234737,-460.0,0.00021917,2]
[366784332,1750450234746,-463.68,0.00021917,2]
[366784333,1750450234755,-460.0,0.00021917,2]
[366784334,1750450234765,-402.29655223,0.00021917,2]
[366784335,1750450234775,-460.0,0.00021917,2]
[366784336,1750450234784,-460.0,0.00021917,2]
[366784337,1750450234794,-460.0,0.00021917,2]
[366784338,1750450234803,-460.0,0.00021917,2]
[366784339,1750450234813,-460.0,0.00021917,2]
[366784340,1750450234822,-460.0,0.00021917,2]
[366784341,1750450234832,-460.0,0.00021917,2]
[366784342,1750450234842,-460.0,0.00021917,2]
[366784343,1750450234851,-460.0,0.00021917,2]
[366784344,1750450234861,-460.0,0.00021917,2]
[366784345,1750450234870,-460.0,0.00021917,2]
[366784346,1750450234880,-3000.0,0.0002192,2]
[366784347,1750450234889,-3000.0,0.0002193,2]
[366784348,1750450234900,-501.91790565,0.00021934,6]
[366784349,1750450234910,-3000.0,0.0002194,2]
[366784350,1750450234919,-3000.0,0.0002195,2]
[366784351,1750450234929,-3000.0,0.0002196,2]
[366784352,1750450234938,-3000.0,0.0002197,2]
[366784353,1750450234948,-3000.0,0.0002198,2]
[366784354,1750450234958,-3000.0,0.0002199,2]
[366784355,1750450234967,-3000.0,0.00022,2]
[366784356,1750450234977,-169.0,0.00022,2]
[366784357,1750450234986,-3000.0,0.0002201,2]
[366784358,1750450234995,-3000.0,0.0002202,2]
[366784359,1750450235005,-3000.0,0.0002203,2]
[366784360,1750450235015,-547.13512626,0.0002204,2]
[366784693,1750450243672,-186.35635837,0.00019638,2]
[366784694,1750450243682,-236.7,0.00020802,10]
[366784695,1750450243692,-230.06456406,0.00021842,2]
[366784696,1750450243701,-836.27303475,0.00021842,2]
[366784697,1750450243711,-460.0,0.00021917,2]
[366784698,1750450243720,-2452.86487374,0.0002204,2]
[366784699,1750450243730,-1406.48358068,0.0002205,2]
[366784700,1750450243742,-1593.51641932,0.0002205,2]
[366784701,1750450243752,-12881.6875362,0.0002205,2]
[366784703,1750450243767,-3000.0,0.0002206,2]
[366784704,1750450243781,-3000.0,0.0002207,2]
[366784705,1750450243796,-3000.0,0.0002208,2]
[366784706,1750450243809,-365.5483814,0.00022082,2]
[366784707,1750450243822,-3000.0,0.0002209,2]
[366784708,1750450243835,-3000.0,0.000221,2]
[366784709,1750450243846,-501.91790565,0.00022107,6]
[366784710,1750450243857,-3000.0,0.0002211,2]
[366784711,1750450243869,-3000.0,0.0002212,2]
[366784712,1750450243881,-3000.0,0.0002213,2]
[366784713,1750450243893,-3000.0,0.0002214,2]
[366784714,1750450243905,-3000.0,0.0002215,2]
[366784715,1750450243916,-2271.79935346,0.0002216,2]
[366784743,1750450245928,-728.20064654,0.0002216,2]
[366784744,1750450245940,-3000.0,0.0002217,2]
[366784745,1750450245953,-500.0,0.00022175,2]
[366784746,1750450245966,-1688.00000001,0.00022175,2]
[366784747,1750450245978,-500.0,0.00022175,2]
[366784748,1750450245993,-1600.54633608,0.00022175,2]
[366784749,1750450488583,25000.0,0.00019102,2]
[366784751,1750450613804,252.587781,0.00013699,2]
[366784754,1750450858247,-236.03405117,0.00019305,2]
[366784755,1750450923373,-253.81798241,0.00019305,2]
[366784756,1750450928610,209.82393853,0.00018756,2]
[366784757,1750450933039,200.0,0.00024649,120]
[366784758,1750450941492,200.0,0.00024649,120]
[366784759,1750450980556,-226.67330297,0.00019296,2]
[366784760,1750450996825,-150.15940923,0.00019296,2]
[366784761,1750450996848,-130.82310186,0.00019296,2]
[366784762,1750451012640,-151.16903462,0.00019129,2]
[366784775,1750451230453,157.3679539,0.00018331,2]
[366784777,1750451248159,308.00683025,0.000189,2]
[366784780,1750451280391,205.33788684,0.000189,2]
[366784785,1750451322070,150.99999983,0.0002,120]
[366784787,1750451326062,-210.31204284,0.00019129,2]
[366784788,1750451334966,2393.5837865,0.00018294,2]
[366784789,1750451338276,-259.0,0.00019129,2]
[366784794,1750451343078,-200.0,0.00019129,2]
[366784802,1750451402021,-285.60883159,0.00019129,2]
[366784803,1750451406862,-164.15926043,0.00019129,2]
[366784804,1750451407108,164.82478462,0.0001904,2]
[366784805,1750451417978,-25.98550522,0.00019129,2]
[366784806,1750451418001,-132.73352577,0.00019194,2]
[366784861,1750451432315,-391.18030779,0.00019194,2]
[366784863,1750451432326,-214.53694107,0.00019293,2]
[366784865,1750451432337,-500.0,0.00019293,2]
[366784867,1750451432347,-500.0,0.00019293,2]
[366784869,1750451432359,-500.0,0.00019293,2]
[366784871,1750451432369,-344.94105155,0.00019293,2]
[366784873,1750451432379,-507.15258905,0.00019293,2]
[366784875,1750451432388,-500.0,0.00019293,2]
[366784877,1750451432399,-500.0,0.00019293,2]
[366784879,1750451432408,-500.0,0.00019293,2]
[366784881,1750451432420,-300.0,0.00019293,2]
[366784882,1750451432429,-300.0,0.00019293,2]
[366784884,1750451432439,-300.0,0.00019293,2]
[366784886,1750451432449,-1200.0,0.00019293,2]
[366784888,1750451432458,-500.0,0.00019294,2]
[366784890,1750451432468,-336.86843975,0.00019294,2]
[366784892,1750451432477,-500.0,0.00019294,2]
[366784894,1750451432486,-252.23710037,0.00019294,2]
[366784902,1750451432560,-500.0,0.00019293,2]
[366784904,1750451432570,-500.0,0.00019293,2]
[366784906,1750451432579,-500.0,0.00019293,2]
[366784908,1750451432590,-464.5431963,0.00019293,2]
[366784910,1750451432599,-500.0,0.00019293,2]
[366784912,1750451432608,-500.0,0.00019293,2]
[366784914,1750451432618,-500.0,0.00019293,2]
[366784916,1750451432627,-500.0,0.00019293,2]
[366784918,1750451432636,-500.0,0.00019293,2]
[366784920,1750451432646,-211.23107378,0.00019293,2]
[366784922,1750451432655,-247.76289963,0.00019294,2]
[366784924,1750451432665,-500.0,0.00019294,2]
[366784925,1750451432674,-500.0,0.00019294,2]
[366784927,1750451432685,-500.0,0.00019294,2]
[366784929,1750451432695,-500.0,0.00019294,2]
[366784931,1750451432706,-500.0,0.00019294,2]
[366784932,1750451432715,-500.0,0.00019294,2]
[366784933,1750451432725,-500.0,0.00019294,2]
[366784935,1750451432735,-500.0,0.00019294,2]
[366784937,1750451432744,-500.0,0.00019294,2]
[366784939,1750451432753,-500.0,0.00019294,2]
[366784940,1750451432763,-500.0,0.00019294,2]
[366784942,1750451432772,-241.47128348,0.00019294,2]
[366784944,1750451432782,-500.0,0.00019294,2]
[366784946,1750451432791,-500.0,0.00019294,2]
[366784948,1750451432801,-500.0,0.00019294,2]
[366784950,1750451432810,-682.50587708,0.00019294,2]
[366784951,1750451432820,-682.50587708,0.00019294,2]
[366784953,1750451432829,-682.50587708,0.00019294,2]
[366784955,1750451432839,-682.50587708,0.00019294,2]
[366784957,1750451432854,-682.50587708,0.00019294,2]
[366784959,1750451432864,-682.50587708,0.00019294,2]
[366784961,1750451432873,-682.50587708,0.00019294,2]
[366784963,1750451432883,-682.50587708,0.00019294,2]
[366784965,1750451432893,-793.72905706,0.00019294,2]
[366784967,1750451432903,-793.72905706,0.00019294,2]
[366784969,1750451432915,-15467.80075662,0.00019295,2]
[366784971,1750451432930,-34532.19924338,0.00019295,2]
[366784973,1750451432940,-300.0,0.00019295,2]
[366784975,1750451432950,-9869.17689814,0.00019296,2]
[366784977,1750451432960,-7298.8151954,0.00019296,2]
[366784979,1750451432970,-640.5285468,0.00019296,2]
[366784981,1750451432979,-231.6758773,0.00019296,2]
[366784983,1750451432989,-500.0,0.000193,2]
[366784985,1750451432999,-620.11797295,0.000193,2]
[366784987,1750451433008,-46.95895642,0.00019305,2]
[366784989,1750451433018,-321.9092121,0.00019342,2]
[366784991,1750451433027,-500.0,0.00019568,2]
[366784993,1750451433037,-426.78634932,0.00019641,2]
[366784995,1750451433048,-160.0,0.000197,2]
[366784997,1750451433058,-607.36,0.00019737,2]
[366784999,1750451433068,-500.0,0.00019842,2]
[366785000,1750451433078,-971.47148591,0.00019848,2]
[366785002,1750451433088,-3657.13111214,0.000199,2]
[366785004,1750451433098,-1049.04948829,0.00019958,2]
[366785006,1750451433108,-500.0,0.00019973,2]
[366785008,1750451433118,-2529.81994933,0.0002,2]
[366785010,1750451433128,-4141.24561041,0.0002,2]
[366785012,1750451433138,-275422.33287886,0.0002,2]
[366785014,1750451433148,-1822.61784276,0.0002,2]
[366785016,1750451433158,-11882.1327046,0.0002,2]
[366785017,1750451433168,-523.91383351,0.00020016,2]
[366785019,1750451433178,-426.78634932,0.00020086,2]
[366785020,1750451433188,-472.56047162,0.00020116,2]
[366785022,1750451433198,-252.587781,0.00020187,2]
[366785024,1750451433207,-936.8266457,0.00020458,2]
[366785026,1750451433217,-24900.0,0.00020458,2]
[366785028,1750451433226,-864.2992677,0.00020458,2]
[366785029,1750451433236,-500.0,0.00020521,2]
[366785031,1750451433245,-163.04,0.00020537,2]
[366785034,1750451433264,-500.0,0.00020548,2]
[366785036,1750451433279,-500.0,0.00020548,2]
[366785038,1750451433289,-500.0,0.00020548,2]
[366785041,1750451433299,-3657.13111213,0.00020606,2]
[366785043,1750451433310,-1805.47724258,0.0002075,2]
[366785045,1750451433321,-250.0,0.00020764,2]
[366785047,1750451433331,-523.91383351,0.00020837,2]
[366785048,1750451433342,-213.51557418,0.00020853,2]
[366785050,1750451433352,-160.0,0.00020853,2]
[366785052,1750451433362,-160.0,0.00020853,2]
[366785054,1750451433372,-12546.90244252,0.00020853,2]
[366785056,1750451433382,-160.0,0.00020853,2]
[366785058,1750451433391,-230.06456406,0.00020853,2]
[366785059,1750451433402,-836.27303475,0.00020853,2]
[366785060,1750451433412,-424.85694595,0.00020854,2]
[366785062,1750451433422,-160.0,0.00020854,2]
[366785064,1750451433433,-196.1815304,0.00020996,2]
[366785065,1750451433442,-748.42012027,0.00021,4]
[366785066,1750451433452,-420.0,0.00021023,2]
[366785067,1750451433462,-420.0,0.00021023,2]
[366785068,1750451433472,-420.0,0.00021023,2]
[366785069,1750451433482,-420.0,0.00021025,2]
[366785071,1750451433492,-730.41,0.00021062,3]
[366785072,1750451433503,-748.42012004,0.00021072,4]
[366785073,1750451433512,-1680.0,0.00021125,2]
[366785074,1750451433522,-748.42012004,0.00021245,4]
[366785075,1750451433532,-3657.13111213,0.00021311,2]
[366785076,1750451433542,-748.42012004,0.00021417,5]
[366785077,1750451433553,-500.0,0.00021493,2]
[366785078,1750451433563,-427.11700007,0.000215,2]
[366785079,1750451433574,-200.0,0.000215,3]
[366785080,1750451433584,-500.0,0.00021517,2]
[366785081,1750451433594,-500.0,0.00021567,2]
[366785082,1750451433605,-306.53721605,0.00021573,2]
[366785083,1750451433614,-505.94149795,0.00021573,2]
[366785084,1750451433624,-469.58064687,0.00021583,2]
[366785085,1750451433635,-748.42012004,0.0002159,5]
[366785086,1750451433645,-523.91383351,0.00021659,2]
[366785087,1750451433655,-748.42012004,0.00021762,5]
[366785088,1750451433665,-295.0,0.000218,2]
[366785089,1750451433676,-500.0,0.00021855,2]
[366785090,1750451433686,-160.0,0.00021916,2]
[366785091,1750451433696,-460.0,0.00021917,2]
[366785092,1750451433706,-460.0,0.00021917,2]
[366785093,1750451433717,-460.0,0.00021917,2]
[366785094,1750451433726,-460.0,0.00021917,2]
[366785095,1750451433736,-460.0,0.00021917,2]
[366785096,1750451433746,-480.15,0.00021917,2]
[366785097,1750451433756,-460.0,0.00021917,2]
[366785098,1750451433767,-460.0,0.00021917,2]
[366785099,1750451433776,-460.0,0.00021917,2]
[366785100,1750451433786,-460.0,0.00021917,2]
[366785101,1750451433795,-460.0,0.00021917,2]
[366785102,1750451433805,-460.0,0.00021917,2]
[366785103,1750451433815,-460.0,0.00021917,2]
[366785104,1750451433825,-460.0,0.00021917,2]
[366785105,1750451433835,-531.36,0.00021917,2]
[366785106,1750451433848,-420.0,0.00021917,2]
[366785107,1750451433858,-460.0,0.00021917,2]
[366785108,1750451433868,-460.0,0.00021917,2]
[366785109,1750451433877,-400.0,0.00021917,2]
[366785110,1750451433889,-460.0,0.00021917,2]
[366785111,1750451433900,-460.0,0.00021917,2]
[366785112,1750451433910,-446.63043916,0.00021917,2]
[366785113,1750451433923,-460.0,0.00021917,2]
[366785114,1750451433935,-460.0,0.00021917,2]
[366785115,1750451433945,-460.0,0.00021917,2]
[366785116,1750451433956,-460.0,0.00021917,2]
[366785117,1750451433966,-460.0,0.00021917,2]
[366785118,1750451433976,-460.0,0.00021917,2]
[366785119,1750451433987,-460.0,0.00021917,2]
[366785120,1750451433997,-460.0,0.00021917,2]
[366785121,1750451434007,-460.0,0.00021917,2]
[366785122,1750451434018,-400.47083913,0.00021918,7]
[366785123,1750451434028,-748.42012004,0.00021934,6]
[366785124,1750451434038,-168.0,0.00021952,2]
[366785125,1750451434048,-1417.65,0.00022,7]
[366785126,1750451434059,-169.0,0.00022,2]
[366785127,1750451434069,-3657.13111213,0.00022017,2]
[366785128,1750451434079,-1000.0,0.00022065,2]
[366785129,1750451434090,-168.0,0.00022094,2]
[366785130,1750451434100,-748.42012004,0.00022107,6]
[366785131,1750451434110,-500.0,0.00022115,2]
[366785132,1750451434120,-168.0,0.00022122,2]
[366785133,1750451434130,-500.0,0.00022175,7]
[366785134,1750451434140,-151.0,0.00022175,7]
[366785135,1750451434150,-151.0,0.00022175,7]
[366785136,1750451434161,-151.0,0.00022175,7]
[366785137,1750451434172,-151.0,0.00022175,7]
[366785138,1750451434182,-151.0,0.00022175,7]
[366785139,1750451434192,-151.0,0.00022175,7]
[366785140,1750451434202,-151.0,0.00022175,7]
[366785141,1750451434212,-416.71543865,0.00022175,2]
[366785142,1750451434222,-5000.0,0.00022175,2]
[366785143,1750451434232,-2058.28299205,0.00022175,2]
[366785144,1750451434242,-207.4,0.00022175,2]
[366785145,1750451434252,-500.0,0.00022175,2]
[366785146,1750451434262,-500.0,0.00022175,2]
[366785147,1750451434272,-500.0,0.00022175,2]
[366785148,1750451434281,-500.0,0.00022175,2]
[366785149,1750451434290,-500.0,0.00022175,2]
[366785150,1750451434301,-500.0,0.00022175,2]
[366785151,1750451434310,-500.0,0.00022175,2]
[366785152,1750451434320,-500.0,0.00022175,2]
[366785153,1750451434330,-500.0,0.00022175,2]
[366785154,1750451434340,-500.0,0.00022175,2]
[366785155,1750451434349,-500.0,0.00022175,2]
[366785156,1750451434360,-500.0,0.00022175,2]
[366785157,1750451434372,-500.0,0.00022175,2]
[366785158,1750451434383,-500.0,0.00022175,2]
[366785159,1750451434394,-500.0,0.00022175,2]
[366785160,1750451434403,-500.0,0.00022175,2]
[366785161,1750451434413,-500.0,0.00022175,2]
[366785162,1750451434424,-500.0,0.00022175,2]
[366785163,1750451434434,-500.0,0.00022175,2]
[366785164,1750451434444,-500.0,0.00022175,2]
[366785165,1750451434454,-500.0,0.00022175,2]
[366785166,1750451434464,-500.0,0.00022175,2]
[366785167,1750451434475,-500.0,0.00022175,2]
[366785168,1750451434484,-500.0,0.00022175,2]
[366785169,1750451434494,-500.0,0.00022175,2]
[366785170,1750451434503,-500.0,0.00022175,2]
[366785171,1750451434513,-500.0,0.00022175,2]
[366785172,1750451434523,-500.0,0.00022175,2]
[366785173,1750451434532,-25000.0,0.00022175,2]
[366785174,1750451434542,-17868.64831762,0.00022175,2]
[366785175,1750451434552,-5850.0,0.0002218,2]
[366785176,1750451434561,-460.0,0.00022191,2]
[366785177,1750451434571,-460.0,0.00022191,2]
[366785178,1750451434581,-253.94,0.00022191,2]
[366785179,1750451434590,-460.0,0.00022191,2]
[366785180,1750451434600,-460.0,0.00022191,2]
[366785181,1750451434610,-460.0,0.00022191,2]
[366785182,1750451434619,-460.0,0.00022191,2]
[366785183,1750451434629,-257.78299186,0.00022191,2]
[366785184,1750451434638,-151.0,0.00022191,7]
[366785185,1750451434647,-151.0,0.00022191,7]
[366785186,1750451434658,-414.58,0.00022191,2]
[366785187,1750451434669,-531.36,0.00022191,2]
[366785188,1750451434678,-460.0,0.00022191,2]
[366785189,1750451434688,-460.0,0.00022191,2]
[366785190,1750451434697,-460.0,0.00022191,2]
[366785191,1750451434707,-460.0,0.00022191,2]
[366785192,1750451434717,-460.0,0.00022191,2]
[366785193,1750451434727,-460.0,0.00022191,2]
[366785194,1750451434737,-460.0,0.00022191,2]
[366785195,1750451434746,-151.0,0.00022191,7]
[366785196,1750451434756,-302.21950938,0.00022191,2]
[366785197,1750451435001,-167.31909194,0.00019293,2]
[366785540,1750451443474,-332.68090806,0.00019293,2]
[366785542,1750451443484,-500.0,0.00019293,2]
[366785544,1750451443495,-500.0,0.00019293,2]
[366785546,1750451443505,-500.0,0.00019293,2]
[366785548,1750451443515,-500.0,0.00019293,2]
[366785550,1750451443524,-500.0,0.00019293,2]
[366785552,1750451443534,-500.0,0.00019293,2]
[366785554,1750451443544,-500.0,0.00019293,2]
[366785555,1750451443554,-500.0,0.00019293,2]
[366785557,1750451443563,-618.60013295,0.00019293,2]
[366785560,1750451443572,-500.0,0.00020548,2]
[366785562,1750451443582,-645.92856766,0.00020548,2]
[366785563,1750451443591,-460.0,0.00021917,2]
[366785564,1750451443601,-460.0,0.00021917,2]
[366785565,1750451443611,-780.24,0.00022165,10]
[366785567,1750451443620,-157.78049062,0.00022191,2]
[366785569,1750451443630,-460.0,0.00022191,2]
[366785570,1750451443639,-460.0,0.00022191,2]
[366785571,1750451443649,-460.0,0.00022191,2]
[366785572,1750451443658,-168.0,0.00022267,2]
[366785574,1750451443669,-748.42012004,0.00022279,6]
[366785576,1750451443679,-600.0,0.00022356,2]
[366785578,1750451443688,-500.0,0.00022356,2]
[366785579,1750451443698,-500.0,0.00022356,2]
[366785580,1750451443708,-500.0,0.00022356,2]
[366785581,1750451443717,-500.0,0.00022356,2]
[366785582,1750451443726,-748.42012004,0.00022452,7]
[366785583,1750451443736,-460.0,0.00022465,2]
[366785584,1750451443745,-460.0,0.00022465,2]
[366785585,1750451443755,-531.36,0.00022465,2]
[366785586,1750451443764,-460.0,0.00022465,2]
[366785587,1750451443773,-254.36014627,0.00022465,2]
[366785588,1750451443783,-460.0,0.00022465,2]
[366785589,1750451443792,-460.0,0.00022465,2]
[366785590,1750451443801,-460.0,0.00022465,2]
[366785591,1750451443811,-504.41,0.00022465,2]
[366785592,1750451443821,-460.0,0.00022465,2]
[366785593,1750451443831,-460.0,0.00022465,2]
[366785594,1750451443840,-460.0,0.00022465,2]
[366785595,1750451443854,-460.0,0.00022465,2]
[366785596,1750451443864,-523.91383351,0.0002248,2]
[366785597,1750451443873,-4050.25,0.000225,7]
[366785598,1750451443882,-794.0,0.00022503,2]
[366785599,1750451443894,-168.0,0.00022526,2]
[366785600,1750451443904,-168.0,0.0002256,2]
[366785601,1750451443914,-160.0,0.0002259,3]
[366785602,1750451443924,-748.42012004,0.00022624,7]
[366785603,1750451443934,-8587.7916908,0.00022639,2]
[366785604,1750451443945,-168.0,0.0002272,2]
[366785605,1750451443955,-701.26514133,0.00022722,2]
[366785997,1750451771899,241.310892,0.00013699,2]
[366785999,1750451948890,1861.7648,0.000246,120]
[366786000,1750451961577,4209.4969392,0.000246,120]
[366786001,1750452319471,-150.30261681,0.00019293,2]
[366786002,1750452378429,-196.48708238,0.00019194,2]
[366786025,1750452632316,-19.57936134,0.00019194,2]
[366786031,1750452632829,-849.69738319,0.00019293,2]
[366786032,1750452632839,-1000.0,0.00019294,2]
[366786033,1750452632849,-10890.14904666,0.00019458,2]
[366786076,1750452640535,-403.67280999,0.00019457,2]
[366786078,1750452640548,-96.32719001,0.00019457,2]
[366786080,1750452640560,-195.23573109,0.00019457,2]
[366786082,1750452640569,-190.13678598,0.00019457,2]
[366786084,1750452640579,-314.12217408,0.00019457,2]
[366786086,1750452640591,-322.86970789,0.00019457,2]
[366786088,1750452640601,-464.02593064,0.00019457,2]
[366786091,1750452640615,-76.75942498,0.00019458,2]
[366786212,1750452644152,-13933.09152836,0.00019458,2]
[366786213,1750452644164,-157.838754,0.00019581,2]
[366786214,1750452644175,-3501.2855083,0.0001966,2]
[366786215,1750452644185,-268.405495,0.00019666,2]
[366786216,1750452644195,-210.7399275,0.00019882,2]
[366786217,1750452644206,-160.0,0.00020186,2]
[366786219,1750452644218,-241.310892,0.00020187,2]
[366786221,1750452644228,-451.98291639,0.00020548,2]
[366786222,1750452644238,-160.0,0.00020864,2]
[366786223,1750452644248,-300.0,0.00020891,2]
[366786224,1750452644259,-300.0,0.00020891,2]
[366786225,1750452644269,-164.0,0.00020891,2]
[366786226,1750452644279,-1200.0,0.00020891,2]
[366786227,1750452644289,-217.61382303,0.00020892,2]
[366786228,1750452644299,-8738.36759071,0.00020892,2]
[366786241,1750452646296,-3350.01874597,0.00020892,2]
[366786242,1750452646305,-300.0,0.00020927,2]
[366786243,1750452646314,-151.0,0.0002093,2]
[366786244,1750452646324,-151.0,0.0002093,2]
[366786245,1750452646334,-195.658,0.0002094,2]
[366786246,1750452646343,-941.74252798,0.00021,4]
[366786247,1750452646352,-429.82901922,0.00021026,2]
[366786248,1750452646361,-941.74252787,0.00021072,4]
[366786249,1750452646371,-551.48698058,0.00021102,2]
[366786250,1750452646380,-941.74252787,0.00021245,4]
[366786251,1750452646390,-188.84154467,0.00021259,2]
[366786252,1750452646400,-429.82901922,0.0002135,2]
[366786253,1750452646409,-941.74252787,0.00021417,5]
[366786254,1750452646419,-217.61382302,0.0002147,2]
[366786255,1750452646428,-160.0,0.00021555,2]
[366786256,1750452646438,-290.57176827,0.00021587,2]
[366786257,1750452646449,-500.0,0.00021587,2]